[Event "Early-Titled-Tuesday-Blitz-October-03-2023"]
[Site "Chess.com"]
[Date "2023.10.03"]
[Round "3"]
[White "Elsa167"]
[Black "ezkybel"]
[Result "1-0"]
[WhiteElo "2912"]
[BlackElo "2501"]
[TimeControl "180+1"]
[EndTime "8:29:39 PDT"]
[Termination "Elsa167 won by resignation"]

1. e4 {[%clk 0:03:00.9]} 1... e6 {[%clk 0:02:56.8]} 2. d4 {[%clk 0:03:00.9]}
2... d5 {[%clk 0:02:56.1]} 3. Nc3 {[%clk 0:03:01]} 3... Bb4 {[%clk 0:02:54.6]}
4. e5 {[%clk 0:02:58.1]} 4... c5 {[%clk 0:02:50.9]} 5. a3 {[%clk 0:02:58.2]}
5... Bxc3+ {[%clk 0:02:51.2]} 6. bxc3 {[%clk 0:02:59.1]} 6... Ne7 {[%clk
0:02:51.5]} 7. a4 {[%clk 0:02:53.3]} 7... Qc7 {[%clk 0:02:48.7]} 8. Nf3 {[%clk
0:02:50.8]} 8... b6 {[%clk 0:02:45.5]} 9. Bb5+ {[%clk 0:02:49.9]} 9... Bd7
{[%clk 0:02:43.7]} 10. Bd3 {[%clk 0:02:49.5]} 10... Nbc6 {[%clk 0:02:36.5]} 11.
O-O {[%clk 0:02:40.1]} 11... Na5 {[%clk 0:02:23.8]} 12. Ng5 {[%clk 0:02:27]}
12... Nf5 {[%clk 0:01:52]} 13. Bxf5 {[%clk 0:02:01]} 13... exf5 {[%clk
0:01:52.9]} 14. Qh5 {[%clk 0:02:01.2]} 14... g6 {[%clk 0:01:40.9]} 15. Qh6
{[%clk 0:01:57.2]} 15... Be6 {[%clk 0:01:40.6]} 16. dxc5 {[%clk 0:01:10]} 16...
bxc5 {[%clk 0:01:30.9]} 17. Rb1 {[%clk 0:01:04.9]} 17... Nc4 {[%clk 0:01:29.2]}
18. Bf4 {[%clk 0:00:52.6]} 18... O-O-O {[%clk 0:01:27.3]} 19. Qg7 {[%clk
0:00:43.8]} 19... h6 {[%clk 0:01:16.9]} 20. Nxe6 {[%clk 0:00:42.3]} 20... fxe6
{[%clk 0:01:16.7]} 21. Qxg6 {[%clk 0:00:42.7]} 21... Rde8 {[%clk 0:00:37]} 22.
Rb5 {[%clk 0:00:37]} 22... a6 {[%clk 0:00:33]} 23. Rb3 {[%clk 0:00:37]} 23...
Rhg8 {[%clk 0:00:27.4]} 24. Qh5 {[%clk 0:00:28.4]} 24... Na5 {[%clk 0:00:26.7]}
25. Rbb1 {[%clk 0:00:27.5]} 25... Nc4 {[%clk 0:00:23.1]} 26. g3 {[%clk
0:00:26.2]} 26... Qc6 {[%clk 0:00:11.1]} 27. Qxh6 {[%clk 0:00:18.9]} 27... Rg4
{[%clk 0:00:10]} 28. Qh7 {[%clk 0:00:17.5]} 28... Rxf4 {[%clk 0:00:08.7]} 29.
Qa7 {[%clk 0:00:16.5]} 29... Qc7 {[%clk 0:00:04.7]} 30. Qxa6+ {[%clk 0:00:15.8]}
30... Kd8 {[%clk 0:00:05.3]} 31. gxf4 {[%clk 0:00:14.4]} 31... d4 {[%clk
0:00:04.3]} 32. Qa8+ {[%clk 0:00:10.3]} 32... Ke7 {[%clk 0:00:04.1]} 33. Rb7
{[%clk 0:00:08.7]} 33... Rxa8 {[%clk 0:00:03.5]} 34. Rxc7+ {[%clk 0:00:09.2]}
34... Kd8 {[%clk 0:00:04.4]} 35. Rxc5 {[%clk 0:00:09.6]} 35... Nd2 {[%clk
0:00:04.7]} 36. Rd1 {[%clk 0:00:07.9]} 36... Nf3+ {[%clk 0:00:04.9]} 37. Kg2
{[%clk 0:00:08.6]} 37... Nh4+ {[%clk 0:00:04.8]} 38. Kg3 {[%clk 0:00:08.9]}
38... Ng6 {[%clk 0:00:05.7]} 39. Rxd4+ {[%clk 0:00:09.2]} 39... Ke7 {[%clk
0:00:06.3]} 40. Rc7+ {[%clk 0:00:09.3]} 40... Kf8 {[%clk 0:00:07.2]} 41. Rdc4
{[%clk 0:00:06.2]} 41... Ne7 {[%clk 0:00:06.8]} 42. h4 {[%clk 0:00:05.5]} 42...
Rd8 {[%clk 0:00:05]} 43. a5 {[%clk 0:00:05.5]} 43... Rd1 {[%clk 0:00:05.1]} 44.
Ra4 {[%clk 0:00:05.4]} 44... Rg1+ {[%clk 0:00:05]} 45. Kh2 {[%clk 0:00:05.7]}
45... Rg4 {[%clk 0:00:04.8]} 46. Rxe7 {[%clk 0:00:05.5]} 46... Kxe7 {[%clk
0:00:04.5]} 47. a6 {[%clk 0:00:05.2]} 47... Rg8 {[%clk 0:00:04.4]} 48. a7 {[%clk
0:00:05.2]} 48... Ra8 {[%clk 0:00:05.3]} 49. h5 {[%clk 0:00:05.5]} 49... Kf7
{[%clk 0:00:05.8]} 50. c4 {[%clk 0:00:05.9]} 50... Kg7 {[%clk 0:00:06.4]} 51. c5
{[%clk 0:00:06.6]} 51... Kf7 {[%clk 0:00:06.9]} 52. c6 {[%clk 0:00:07]} 52...
Ke7 {[%clk 0:00:07.4]} 53. h6 {[%clk 0:00:06.3]} 53... Kd8 {[%clk 0:00:06.9]}
54. h7 {[%clk 0:00:06.9]} 54... Kc7 {[%clk 0:00:07.7]} 55. Kg2 {[%clk
0:00:07.3]} 55... Kxc6 {[%clk 0:00:08.1]} 56. h8=Q {[%clk 0:00:07.8]} 1-0

[Event "Early-Titled-Tuesday-Blitz-October-03-2023"]
[Site "Chess.com"]
[Date "2023.10.03"]
[Round "3"]
[White "ozates"]
[Black "Dr_crypt"]
[Result "1-0"]
[WhiteElo "2627"]
[BlackElo "2433"]
[TimeControl "180+1"]
[EndTime "8:29:40 PDT"]
[Termination "ozates won on time"]

1. e4 {[%clk 0:03:00.1]} 1... d5 {[%clk 0:02:59]} 2. exd5 {[%clk 0:02:58.8]}
2... Qxd5 {[%clk 0:02:59.9]} 3. Nc3 {[%clk 0:02:58.6]} 3... Qd6 {[%clk
0:03:00.1]} 4. d4 {[%clk 0:02:59]} 4... c6 {[%clk 0:03:00.6]} 5. Nf3 {[%clk
0:02:59.9]} 5... Bg4 {[%clk 0:03:01.2]} 6. h3 {[%clk 0:02:57]} 6... Bxf3 {[%clk
0:03:01.3]} 7. Qxf3 {[%clk 0:02:57.9]} 7... Qxd4 {[%clk 0:03:02.2]} 8. Bf4
{[%clk 0:02:50.8]} 8... Qb4 {[%clk 0:03:01.8]} 9. a3 {[%clk 0:02:47.4]} 9... Qb6
{[%clk 0:02:49.1]} 10. Bc4 {[%clk 0:02:46.7]} 10... Nf6 {[%clk 0:02:47.9]} 11.
O-O {[%clk 0:02:44.6]} 11... Nbd7 {[%clk 0:02:43.6]} 12. g4 {[%clk 0:02:43.2]}
12... e6 {[%clk 0:02:43]} 13. Rfe1 {[%clk 0:02:39.9]} 13... Be7 {[%clk
0:02:43.2]} 14. Bxe6 {[%clk 0:02:24]} 14... fxe6 {[%clk 0:02:42.4]} 15. Rxe6
{[%clk 0:02:24.9]} 15... Kd8 {[%clk 0:01:40.8]} 16. g5 {[%clk 0:02:22.7]} 16...
Ne8 {[%clk 0:01:36.6]} 17. Rd1 {[%clk 0:02:18.6]} 17... Rc8 {[%clk 0:01:16.7]}
18. Nd5 {[%clk 0:02:00.3]} 18... cxd5 {[%clk 0:01:08.6]} 19. Rxb6 {[%clk
0:02:00.3]} 19... Nxb6 {[%clk 0:01:08.9]} 20. c4 {[%clk 0:01:56.2]} 20... Rf8
{[%clk 0:01:08.1]} 21. Qe3 {[%clk 0:01:13.5]} 21... Rxc4 {[%clk 0:01:07]} 22.
Bg3 {[%clk 0:01:14.2]} 22... Bc5 {[%clk 0:01:00]} 23. Qe5 {[%clk 0:01:06.6]}
23... Bd6 {[%clk 0:00:50.7]} 24. Qe2 {[%clk 0:01:04.6]} 24... Bxg3 {[%clk
0:00:49.9]} 25. fxg3 {[%clk 0:01:03.8]} 25... Nd6 {[%clk 0:00:47.8]} 26. Qe6
{[%clk 0:00:58.7]} 26... Rc6 {[%clk 0:00:36.7]} 27. b4 {[%clk 0:00:50.3]} 27...
a6 {[%clk 0:00:36.4]} 28. a4 {[%clk 0:00:49.7]} 28... Ndc4 {[%clk 0:00:31.3]}
29. Qe4 {[%clk 0:00:34.8]} 29... Re8 {[%clk 0:00:30.1]} 30. Qxh7 {[%clk
0:00:33.4]} 30... Ne3 {[%clk 0:00:28.8]} 31. Re1 {[%clk 0:00:31.3]} 31... g6
{[%clk 0:00:26.1]} 32. Qxb7 {[%clk 0:00:29.6]} 32... Rce6 {[%clk 0:00:19]} 33.
Qxa6 {[%clk 0:00:20.9]} 33... Nbc4 {[%clk 0:00:17.7]} 34. Qa8+ {[%clk
0:00:20.9]} 34... Ke7 {[%clk 0:00:17.5]} 35. Qb7+ {[%clk 0:00:20.2]} 35... Kf8
{[%clk 0:00:18]} 36. a5 {[%clk 0:00:20.8]} 36... R8e7 {[%clk 0:00:17]} 37. Qb8+
{[%clk 0:00:20.6]} 37... Kg7 {[%clk 0:00:17.7]} 38. Qf4 {[%clk 0:00:18.3]} 38...
Re4 {[%clk 0:00:15.1]} 39. Qf6+ {[%clk 0:00:17.7]} 39... Kh7 {[%clk 0:00:15.9]}
40. a6 {[%clk 0:00:17.3]} 40... R4e6 {[%clk 0:00:13.3]} 41. Qf8 {[%clk
0:00:17.5]} 41... Nd2 {[%clk 0:00:05.6]} 42. b5 {[%clk 0:00:14.2]} 42... Nf5
{[%clk 0:00:05.2]} 43. Rxe6 {[%clk 0:00:12.7]} 43... Rxe6 {[%clk 0:00:05.4]} 44.
Qf7+ {[%clk 0:00:13.1]} 44... Ng7 {[%clk 0:00:06]} 45. Qxe6 {[%clk 0:00:08]}
45... Nxe6 {[%clk 0:00:06.5]} 46. a7 {[%clk 0:00:08.7]} 46... Nf3+ {[%clk
0:00:05.7]} 47. Kh1 {[%clk 0:00:08.6]} 1-0

[Event "Early-Titled-Tuesday-Blitz-October-03-2023"]
[Site "Chess.com"]
[Date "2023.10.03"]
[Round "3"]
[White "ferrufino64"]
[Black "Herzog2012"]
[Result "0-1"]
[WhiteElo "2203"]
[BlackElo "2522"]
[TimeControl "180+1"]
[EndTime "8:29:40 PDT"]
[Termination "Herzog2012 won by resignation"]

1. e4 {[%clk 0:02:56.9]} 1... c5 {[%clk 0:02:57.7]} 2. Nf3 {[%clk 0:02:55.7]}
2... Nc6 {[%clk 0:02:57.6]} 3. d4 {[%clk 0:02:55.5]} 3... cxd4 {[%clk
0:02:57.4]} 4. Nxd4 {[%clk 0:02:56.4]} 4... Nf6 {[%clk 0:02:57.2]} 5. Nc3 {[%clk
0:02:55.7]} 5... d6 {[%clk 0:02:56.8]} 6. Be2 {[%clk 0:02:41]} 6... e5 {[%clk
0:02:54.8]} 7. Nb3 {[%clk 0:02:36.9]} 7... Be7 {[%clk 0:02:51]} 8. Be3 {[%clk
0:02:36]} 8... O-O {[%clk 0:02:46.5]} 9. O-O {[%clk 0:02:35.2]} 9... Be6 {[%clk
0:02:45.9]} 10. Re1 {[%clk 0:02:33]} 10... d5 {[%clk 0:02:45.1]} 11. exd5 {[%clk
0:02:33.3]} 11... Nxd5 {[%clk 0:02:44.7]} 12. Nxd5 {[%clk 0:02:33.7]} 12... Bxd5
{[%clk 0:02:45]} 13. c3 {[%clk 0:02:23]} 13... f5 {[%clk 0:01:58]} 14. f3 {[%clk
0:01:26]} 14... Bf7 {[%clk 0:01:52.7]} 15. Bf2 {[%clk 0:01:20.1]} 15... Qxd1
{[%clk 0:01:47.4]} 16. Raxd1 {[%clk 0:01:21]} 16... Rad8 {[%clk 0:01:45.2]} 17.
Bb5 {[%clk 0:01:20.4]} 17... a6 {[%clk 0:01:41.1]} 18. Bxc6 {[%clk 0:01:16.4]}
18... bxc6 {[%clk 0:01:40.3]} 19. Rxd8 {[%clk 0:01:16.3]} 19... Rxd8 {[%clk
0:01:39.6]} 20. Rxe5 {[%clk 0:01:16.5]} 20... Bf6 {[%clk 0:01:34.7]} 21. Re1
{[%clk 0:01:14.9]} 21... Rb8 {[%clk 0:01:24.8]} 22. Nd4 {[%clk 0:01:09.3]} 22...
Rxb2 {[%clk 0:01:23.2]} 23. Nxf5 {[%clk 0:00:58.6]} 23... Bxc3 {[%clk
0:01:20.2]} 24. Rc1 {[%clk 0:00:58.2]} 24... Bd2 {[%clk 0:01:17.1]} 25. Rd1
{[%clk 0:00:54]} 25... Bxa2 {[%clk 0:01:04.6]} 26. Bd4 {[%clk 0:00:40.6]} 26...
Rb1 {[%clk 0:00:55.8]} 27. Rxb1 {[%clk 0:00:35.4]} 27... Bxb1 {[%clk 0:00:56.7]}
28. Ne7+ {[%clk 0:00:35.7]} 28... Kf8 {[%clk 0:00:47.8]} 29. Nxc6 {[%clk
0:00:36.6]} 29... a5 {[%clk 0:00:46.3]} 30. Kf2 {[%clk 0:00:32.2]} 30... Bd3
{[%clk 0:00:42.1]} 31. Ne5 {[%clk 0:00:30.9]} 31... Bb5 {[%clk 0:00:39.6]} 32.
Bc5+ {[%clk 0:00:29.6]} 32... Ke8 {[%clk 0:00:38.4]} 33. Ng4 {[%clk 0:00:19.1]}
33... a4 {[%clk 0:00:28.9]} 34. Ne3 {[%clk 0:00:19.2]} 34... Bc1 {[%clk
0:00:26.8]} 35. Nc2 {[%clk 0:00:19.4]} 35... Bd3 {[%clk 0:00:25.5]} 36. Na3
{[%clk 0:00:19.3]} 36... Bd2 {[%clk 0:00:18.9]} 37. Bd4 {[%clk 0:00:13.2]} 37...
g6 {[%clk 0:00:13.2]} 38. Be3 {[%clk 0:00:13.5]} 38... Bb4 {[%clk 0:00:12.6]}
39. Bc1 {[%clk 0:00:13]} 39... Bc5+ {[%clk 0:00:07.5]} 40. Ke1 {[%clk
0:00:12.7]} 40... Kd7 {[%clk 0:00:07.8]} 41. Kd2 {[%clk 0:00:12.3]} 41... Bf1
{[%clk 0:00:08.1]} 42. g3 {[%clk 0:00:12.5]} 42... Bg1 {[%clk 0:00:07.1]} 43. h4
{[%clk 0:00:12.9]} 43... Bf2 {[%clk 0:00:06.7]} 44. g4 {[%clk 0:00:10.6]} 44...
Bxh4 {[%clk 0:00:06.4]} 45. Ke3 {[%clk 0:00:10.2]} 45... h5 {[%clk 0:00:05]} 46.
gxh5 {[%clk 0:00:08.4]} 46... gxh5 {[%clk 0:00:05.9]} 47. f4 {[%clk 0:00:08.6]}
47... Be7 {[%clk 0:00:06.2]} 48. Ke4 {[%clk 0:00:08]} 48... h4 {[%clk
0:00:05.9]} 49. f5 {[%clk 0:00:07.1]} 49... h3 {[%clk 0:00:05.1]} 50. Nc2 {[%clk
0:00:05.9]} 50... h2 {[%clk 0:00:04.8]} 51. f6 {[%clk 0:00:06]} 51... h1=Q+
{[%clk 0:00:05.7]} 52. Kf5 {[%clk 0:00:06.3]} 52... Qf3+ {[%clk 0:00:05]} 53.
Kg6 {[%clk 0:00:06.4]} 53... Qxf6+ {[%clk 0:00:05.1]} 0-1

[Event "Early-Titled-Tuesday-Blitz-October-03-2023"]
[Site "Chess.com"]
[Date "2023.10.03"]
[Round "3"]
[White "Vladimir_Zakhartsov"]
[Black "mortngabriel"]
[Result "1/2-1/2"]
[WhiteElo "2825"]
[BlackElo "2591"]
[TimeControl "180+1"]
[EndTime "8:29:42 PDT"]
[Termination "Game drawn by stalemate"]

1. d4 {[%clk 0:02:59.3]} 1... Nf6 {[%clk 0:03:00.1]} 2. c4 {[%clk 0:02:57.8]}
2... e6 {[%clk 0:03:00.2]} 3. Nc3 {[%clk 0:02:57.6]} 3... Bb4 {[%clk 0:03:00.6]}
4. e3 {[%clk 0:02:58.1]} 4... O-O {[%clk 0:03:00.8]} 5. Bd2 {[%clk 0:02:57.2]}
5... d5 {[%clk 0:02:57.4]} 6. Nf3 {[%clk 0:02:56.9]} 6... b6 {[%clk 0:02:57.1]}
7. cxd5 {[%clk 0:02:56.3]} 7... exd5 {[%clk 0:02:57.5]} 8. Bd3 {[%clk
0:02:56.9]} 8... Bb7 {[%clk 0:02:53.7]} 9. O-O {[%clk 0:02:55.3]} 9... Bd6
{[%clk 0:02:52.4]} 10. Qb1 {[%clk 0:02:50.2]} 10... Re8 {[%clk 0:02:35.7]} 11.
b4 {[%clk 0:02:45.2]} 11... Nbd7 {[%clk 0:02:26.1]} 12. Qb3 {[%clk 0:02:02.5]}
12... Ne4 {[%clk 0:01:55.6]} 13. Nxd5 {[%clk 0:01:48.9]} 13... Nxd2 {[%clk
0:01:47.4]} 14. Nxd2 {[%clk 0:01:48.8]} 14... Qg5 {[%clk 0:01:48]} 15. Be4
{[%clk 0:01:09.9]} 15... Rxe4 {[%clk 0:01:43.2]} 16. Nxe4 {[%clk 0:01:10]} 16...
Qxd5 {[%clk 0:01:42.5]} 17. Qxd5 {[%clk 0:01:10.1]} 17... Bxd5 {[%clk
0:01:43.4]} 18. Nxd6 {[%clk 0:01:10.6]} 18... cxd6 {[%clk 0:01:43.7]} 19. Rfc1
{[%clk 0:01:11.2]} 19... Nf6 {[%clk 0:01:15.4]} 20. f3 {[%clk 0:01:01.5]} 20...
b5 {[%clk 0:01:14.5]} 21. a4 {[%clk 0:01:01.6]} 21... Bc4 {[%clk 0:01:09.6]} 22.
e4 {[%clk 0:00:50.2]} 22... Kf8 {[%clk 0:01:00.5]} 23. axb5 {[%clk 0:00:46.9]}
23... Bxb5 {[%clk 0:01:00.4]} 24. Rc7 {[%clk 0:00:46.5]} 24... a6 {[%clk
0:00:59.9]} 25. Rac1 {[%clk 0:00:40.4]} 25... Ne8 {[%clk 0:00:58.8]} 26. Rb7
{[%clk 0:00:37.6]} 26... Rd8 {[%clk 0:00:49.7]} 27. d5 {[%clk 0:00:35.7]} 27...
h5 {[%clk 0:00:46.2]} 28. Kf2 {[%clk 0:00:35.5]} 28... g5 {[%clk 0:00:45.7]} 29.
h4 {[%clk 0:00:32.9]} 29... gxh4 {[%clk 0:00:39.2]} 30. Kg1 {[%clk 0:00:27]}
30... Kg7 {[%clk 0:00:33.9]} 31. Kh2 {[%clk 0:00:20.2]} 31... Kf6 {[%clk
0:00:31.4]} 32. Kh3 {[%clk 0:00:20.7]} 32... Kg6 {[%clk 0:00:31.3]} 33. Kxh4
{[%clk 0:00:20.6]} 33... Ra8 {[%clk 0:00:27.6]} 34. Rb6 {[%clk 0:00:18.2]} 34...
Rd8 {[%clk 0:00:26.3]} 35. e5 {[%clk 0:00:18.2]} 35... Kf5 {[%clk 0:00:23.9]}
36. exd6 {[%clk 0:00:15.1]} 36... Nxd6 {[%clk 0:00:23.8]} 37. Rc7 {[%clk
0:00:13.1]} 37... Ke5 {[%clk 0:00:22.1]} 38. Kxh5 {[%clk 0:00:10.5]} 38... Rh8+
{[%clk 0:00:21.3]} 39. Kg4 {[%clk 0:00:10.1]} 39... Rg8+ {[%clk 0:00:21.8]} 40.
Kh3 {[%clk 0:00:10.5]} 40... Bf1 {[%clk 0:00:20.6]} 41. Re7+ {[%clk 0:00:08.5]}
41... Kxd5 {[%clk 0:00:20.8]} 42. Rd7 {[%clk 0:00:08.4]} 42... Bxg2+ {[%clk
0:00:20.4]} 43. Kh2 {[%clk 0:00:08.4]} 43... Rg6 {[%clk 0:00:21.3]} 44. Rxf7
{[%clk 0:00:02.9]} 44... Bf1 {[%clk 0:00:18.3]} 45. Rd7 {[%clk 0:00:02.5]} 45...
Bb5 {[%clk 0:00:17.7]} 46. f4 {[%clk 0:00:02]} 46... Rf6 {[%clk 0:00:16.6]} 47.
f5 {[%clk 0:00:02.2]} 47... Ke5 {[%clk 0:00:16.5]} 48. Rd8 {[%clk 0:00:01.6]}
48... Nxf5 {[%clk 0:00:14.9]} 49. Rxf6 {[%clk 0:00:01.1]} 49... Kxf6 {[%clk
0:00:15]} 50. Kg1 {[%clk 0:00:01.8]} 50... Ke5 {[%clk 0:00:15]} 51. Ra8 {[%clk
0:00:02.4]} 51... Nd4 {[%clk 0:00:15.3]} 52. Kf2 {[%clk 0:00:03.1]} 52... Nc6
{[%clk 0:00:15.5]} 53. Rc8 {[%clk 0:00:02.1]} 53... Nxb4 {[%clk 0:00:15.8]} 54.
Ke3 {[%clk 0:00:02.7]} 54... Nc6 {[%clk 0:00:15.8]} 55. Rxc6 {[%clk 0:00:02.5]}
55... Bxc6 {[%clk 0:00:15.6]} 56. Kd3 {[%clk 0:00:03.2]} 56... Kd5 {[%clk
0:00:16]} 57. Kc3 {[%clk 0:00:03.9]} 57... Kc5 {[%clk 0:00:16.9]} 58. Kb2 {[%clk
0:00:04.8]} 58... Kb4 {[%clk 0:00:16.8]} 59. Ka1 {[%clk 0:00:05.7]} 59... Ka3
{[%clk 0:00:17.2]} 60. Kb1 {[%clk 0:00:06.4]} 60... Bd5 {[%clk 0:00:17.5]} 61.
Ka1 {[%clk 0:00:07.3]} 61... Bc4 {[%clk 0:00:18.2]} 62. Kb1 {[%clk 0:00:08.1]}
62... Bb3 {[%clk 0:00:18.1]} 63. Ka1 {[%clk 0:00:09]} 63... Ba2 {[%clk
0:00:18.4]} 1/2-1/2

[Event "Early-Titled-Tuesday-Blitz-October-03-2023"]
[Site "Chess.com"]
[Date "2023.10.03"]
[Round "3"]
[White "Rosh1610"]
[Black "Daffidollchess2"]
[Result "0-1"]
[WhiteElo "2461"]
[BlackElo "2710"]
[TimeControl "180+1"]
[EndTime "8:29:43 PDT"]
[Termination "Daffidollchess2 won by checkmate"]

1. e4 {[%clk 0:02:58.7]} 1... c5 {[%clk 0:03:00.3]} 2. Nc3 {[%clk 0:02:57]} 2...
Nc6 {[%clk 0:03:00.6]} 3. f4 {[%clk 0:02:56.4]} 3... e6 {[%clk 0:02:59.7]} 4.
Nf3 {[%clk 0:02:56.5]} 4... d5 {[%clk 0:03:00]} 5. exd5 {[%clk 0:02:55.6]} 5...
exd5 {[%clk 0:03:00.4]} 6. Bb5 {[%clk 0:02:56.1]} 6... Nf6 {[%clk 0:02:53.1]} 7.
O-O {[%clk 0:02:48.8]} 7... Be7 {[%clk 0:02:52.7]} 8. Bxc6+ {[%clk 0:02:46.8]}
8... bxc6 {[%clk 0:02:52.7]} 9. d3 {[%clk 0:02:47.3]} 9... O-O {[%clk
0:02:51.8]} 10. b3 {[%clk 0:02:47.6]} 10... Bd6 {[%clk 0:02:47.3]} 11. Ne2
{[%clk 0:02:47.5]} 11... Re8 {[%clk 0:02:46.3]} 12. c4 {[%clk 0:02:44.6]} 12...
d4 {[%clk 0:02:45.8]} 13. Ng3 {[%clk 0:02:30.9]} 13... Qc7 {[%clk 0:02:37.4]}
14. Ng5 {[%clk 0:02:28.9]} 14... h6 {[%clk 0:02:30.7]} 15. N5e4 {[%clk
0:02:28.4]} 15... Nxe4 {[%clk 0:02:27.3]} 16. Nxe4 {[%clk 0:02:29.3]} 16... Bf8
{[%clk 0:02:22.3]} 17. f5 {[%clk 0:02:20.6]} 17... Rxe4 {[%clk 0:02:10.2]} 18.
dxe4 {[%clk 0:02:18.8]} 18... Bd6 {[%clk 0:02:10.8]} 19. Qh5 {[%clk 0:02:15.6]}
19... f6 {[%clk 0:02:10]} 20. Bd2 {[%clk 0:02:12.9]} 20... Bd7 {[%clk
0:02:08.1]} 21. Rae1 {[%clk 0:02:12.1]} 21... Be8 {[%clk 0:02:07.4]} 22. Qg4
{[%clk 0:02:11.7]} 22... Kf8 {[%clk 0:02:06.7]} 23. Qh4 {[%clk 0:02:08.6]} 23...
Be5 {[%clk 0:02:02.6]} 24. Bf4 {[%clk 0:02:07.9]} 24... a5 {[%clk 0:02:00.8]}
25. Qg3 {[%clk 0:02:06.7]} 25... Bf7 {[%clk 0:01:56.3]} 26. Bxe5 {[%clk
0:02:04.9]} 26... Qxe5 {[%clk 0:01:55.8]} 27. Qxe5 {[%clk 0:02:05.8]} 27... fxe5
{[%clk 0:01:56.7]} 28. f6 {[%clk 0:02:06.3]} 28... g6 {[%clk 0:01:56.6]} 29. a4
{[%clk 0:01:58.9]} 29... Rb8 {[%clk 0:01:56]} 30. Rf3 {[%clk 0:01:59.1]} 30...
Ke8 {[%clk 0:01:56.3]} 31. Rd3 {[%clk 0:01:59]} 31... Kd7 {[%clk 0:01:56.4]} 32.
Rf1 {[%clk 0:01:58.2]} 32... Ke6 {[%clk 0:01:56.6]} 33. g4 {[%clk 0:01:57.3]}
33... Rg8 {[%clk 0:01:44.7]} 34. h4 {[%clk 0:01:53.2]} 34... g5 {[%clk
0:01:44.3]} 35. Kh2 {[%clk 0:01:09.7]} 35... gxh4 {[%clk 0:01:42]} 36. Kh3
{[%clk 0:01:09.7]} 36... Bg6 {[%clk 0:01:37.5]} 37. f7 {[%clk 0:01:09.2]} 37...
Rf8 {[%clk 0:01:37.5]} 38. Rdf3 {[%clk 0:01:08.9]} 38... Rxf7 {[%clk 0:01:37.5]}
39. Rxf7 {[%clk 0:01:07.3]} 39... Bxf7 {[%clk 0:01:38.1]} 40. Kxh4 {[%clk
0:01:07.6]} 40... Bg6 {[%clk 0:01:38.7]} 41. Re1 {[%clk 0:01:07.2]} 41... Kf6
{[%clk 0:01:36.2]} 42. Re2 {[%clk 0:00:59.9]} 42... d3 {[%clk 0:01:30.3]} 43.
Re3 {[%clk 0:00:40]} 43... Bxe4 {[%clk 0:01:28.8]} 44. Re1 {[%clk 0:00:39.9]}
44... Bg6 {[%clk 0:01:27.4]} 45. Kg3 {[%clk 0:00:35.7]} 45... Be4 {[%clk
0:01:05]} 46. Kf2 {[%clk 0:00:23.7]} 46... Kg5 {[%clk 0:01:03.1]} 47. Ke3 {[%clk
0:00:23.6]} 47... Bg6 {[%clk 0:01:02.9]} 48. Kf3 {[%clk 0:00:20.3]} 48... e4+
{[%clk 0:00:56.4]} 49. Ke3 {[%clk 0:00:12.9]} 49... Kxg4 {[%clk 0:00:55.2]} 50.
Rg1+ {[%clk 0:00:13.2]} 50... Kf5 {[%clk 0:00:55.2]} 51. Rf1+ {[%clk 0:00:13.3]}
51... Kg5 {[%clk 0:00:55]} 52. Rg1+ {[%clk 0:00:13.6]} 52... Kf6 {[%clk
0:00:55.4]} 53. Rf1+ {[%clk 0:00:13.9]} 53... Bf5 {[%clk 0:00:55.8]} 54. Rh1
{[%clk 0:00:14]} 54... Kg5 {[%clk 0:00:56.2]} 55. Rg1+ {[%clk 0:00:13.5]} 55...
Bg4 {[%clk 0:00:56.7]} 56. Rg2 {[%clk 0:00:12.8]} 56... Kf5 {[%clk 0:00:56.7]}
57. Rf2+ {[%clk 0:00:10.4]} 57... Bf3 {[%clk 0:00:56.5]} 58. Rh2 {[%clk
0:00:08.3]} 58... h5 {[%clk 0:00:56.8]} 59. Rh4 {[%clk 0:00:08.3]} 59... Kg5
{[%clk 0:00:57]} 60. Rh2 {[%clk 0:00:04.3]} 60... h4 {[%clk 0:00:57.3]} 61. Rf2
{[%clk 0:00:04.5]} 61... Kg4 {[%clk 0:00:57.5]} 62. Rd2 {[%clk 0:00:04.1]} 62...
h3 {[%clk 0:00:57.7]} 63. Rf2 {[%clk 0:00:03.5]} 63... Kg3 {[%clk 0:00:58]} 64.
Rd2 {[%clk 0:00:03.2]} 64... h2 {[%clk 0:00:56.8]} 65. Rf2 {[%clk 0:00:01.6]}
65... h1=Q {[%clk 0:00:53.2]} 66. Rh2 {[%clk 0:00:02.2]} 66... Qe1+ {[%clk
0:00:51.4]} 67. Re2 {[%clk 0:00:01.5]} 67... Qxe2# {[%clk 0:00:51.8]} 0-1